fUSD/lending_fUSD_20260326
["ID","MTS","AMOUNT","RATE_DAILY","PERIOD"]
[13291,1774487445532,-200.0,0.000158,5]
[13293,1774487445551,-150.0,0.00015814,2]
[13295,1774487445569,-150.0,0.00015831,2]
[13297,1774487445587,-150.0,0.00015853,2]
[13305,1774487445749,-200.0,0.00015866,2]
[13307,1774487445768,-200.0,0.00015866,2]
[13309,1774487445786,-200.0,0.00015866,2]
[13311,1774487445805,-150.0,0.00015867,2]
[13313,1774487445823,-150.0,0.00015867,2]
[13315,1774487445842,-2000.0,0.0001589,2]
[13317,1774487445861,-160.0,0.00015894,3]
[13319,1774487445882,-617.62,0.00015898,2]
[13321,1774487445901,-200.0,0.000159,5]
[13323,1774487445920,-217.59500552,0.000159,2]
[13325,1774487445938,-1788.78686724,0.000159,2]
[13327,1774487445957,-150.0,0.00015907,2]
[13329,1774487445976,-150.0,0.00015933,2]
[13331,1774487445996,-150.0,0.00015938,2]
[13333,1774487446016,-500.0,0.0001597,2]
[13335,1774487446036,-500.0,0.0001597,2]
[13337,1774487446059,-500.0,0.0001597,2]
[13361,1774487446309,-500.0,0.00015973,2]
[13363,1774487446328,-176.3133594,0.00015973,2]
[13365,1774487446337,-199.925,0.00015973,2]
[13367,1774487446347,-150.0,0.0001598,2]
[13369,1774487446356,-389.07326587,0.0001599,2]
[13371,1774487446366,-169.0,0.00016,2]
[13373,1774487446375,-876.54,0.00016,2]
[13375,1774487446385,-2781.19,0.00016,2]
[13377,1774487446394,-178.0,0.00016,2]
[13794,1774488640979,-500.0,9.588e-05,2]
[13801,1774488641043,-500.0,9.588e-05,2]
[13803,1774488641062,-500.0,9.588e-05,2]
[13805,1774488641080,-500.0,9.588e-05,2]
[13807,1774488641098,-500.0,9.588e-05,2]
[13827,1774488641261,-1164.72064356,9.588e-05,2]
[13829,1774488641279,-500.0,9.588e-05,2]
[13831,1774488641296,-489.27998773,9.588e-05,2]
[13873,1774488641618,-1164.72064356,9.588e-05,2]
[13874,1774488641628,-1164.72064356,9.588e-05,2]
[13876,1774488641645,-1164.72064356,9.588e-05,2]
[13878,1774488641654,-1164.72064356,9.588e-05,2]
[13880,1774488641663,-1164.72064356,9.588e-05,2]
[13886,1774488641691,-1164.72064356,9.588e-05,2]
[13888,1774488641700,-1164.72064356,9.588e-05,2]
[13890,1774488641709,-1164.72064356,9.588e-05,2]
[14023,1774488642855,-166.66,0.00011217,2]
[14025,1774488642874,-500.0,0.00011399,2]
[14027,1774488643052,-500.0,0.00011399,2]
[23732,1774508158696,-2129.55915442,0.00047144,120]
[23733,1774508158724,-165.33377387,0.00047144,30]
[23734,1774508158753,-243.7109412,0.00047144,120]
[23735,1774508158779,-206.17917708,0.00047144,30]
[23736,1774508158805,-2171.64776784,0.00047144,30]
[23737,1774508158832,-201.81466734,0.00047144,120]
[23738,1774508158859,-854.97428595,0.00047144,120]
[23739,1774508158885,-199.98933347,0.00047144,120]
[23740,1774508158911,-646.11888062,0.00047144,30]
[23741,1774508158939,-380.09520276,0.00047144,120]
[23771,1774508159884,-193.2016371,0.00047144,120]
[23777,1774508160040,-575.42402412,0.00047144,120]
[23779,1774508160093,-330.84791347,0.00047144,60]
[23781,1774508160148,-598.3,0.00047144,120]
[23783,1774508160207,-271.55202671,0.00047144,90]
[23785,1774508160263,-1807.00810296,0.00047144,120]
[23787,1774508160317,-723.53539234,0.00047144,30]
[23788,1774508160344,-549.0,0.00047144,30]
[23789,1774508160371,-247.4,0.00047144,120]
[23790,1774508160397,-8000.0,0.00047144,120]
[23791,1774508160424,-3520.0,0.00047144,30]
[23793,1774508160477,-40936.30849304,0.00047144,49]
[23794,1774508160505,-500.0,0.00047144,120]
[23795,1774508160534,-500.0,0.00047144,120]
[23796,1774508160563,-500.0,0.00047144,120]
[23797,1774508160590,-500.0,0.00047144,120]
[23799,1774508160646,-500.0,0.00047144,120]
[23801,1774508160703,-760.0,0.00047144,30]
[23803,1774508160757,-1000.0,0.00047144,30]
[23805,1774508160812,-1000.0,0.00047144,34]
[23843,1774508161918,-500.0,0.00047144,120]
[23845,1774508161969,-477.47,0.00047144,120]
[23847,1774508162021,-1000.0,0.00047144,120]
[23849,1774508162073,-150.0,0.00047144,30]
[23851,1774508162124,-1000.0,0.00047144,120]
[23853,1774508162181,-50000.0,0.00047144,59]
[23855,1774508162238,-50000.0,0.00047144,61]
[23857,1774508162291,-915.19,0.00047144,30]
[23861,1774508162393,-1500.0,0.00047144,120]
[23863,1774508162447,-101672.64257535,0.00047144,60]
[23865,1774508162498,-15000.0,0.00047144,120]
[23867,1774508162549,-1000.0,0.00047144,120]
[23869,1774508162602,-1000.0,0.00047144,120]
[23871,1774508162654,-1000.0,0.00047144,120]
[23873,1774508162707,-1000.0,0.00047144,120]
[23875,1774508162761,-1000.0,0.00047144,120]
[23877,1774508162814,-1000.0,0.00047144,120]
[23879,1774508162867,-1000.0,0.00047144,120]
[23881,1774508162918,-1000.0,0.00047144,120]
[23883,1774508162972,-1000.0,0.00047144,120]
[23885,1774508163025,-1000.0,0.00047144,120]
[23887,1774508163082,-1000.0,0.00047144,120]
[23889,1774508163135,-400.0,0.00047144,30]
[23890,1774508163161,-400.0,0.00047144,30]
[23891,1774508163187,-400.0,0.00047144,30]
[23893,1774508163240,-400.0,0.00047144,30]
[23894,1774508163267,-400.0,0.00047144,30]
[23895,1774508163292,-400.0,0.00047144,30]
[23897,1774508163343,-400.0,0.00047144,30]
[23899,1774508163393,-400.0,0.00047144,30]
[23901,1774508163444,-182.74348341,0.00047144,120]
[23903,1774508163496,-180.38073085,0.00047144,120]
[23905,1774508163548,-500.0,0.00047144,120]
[23907,1774508163603,-500.0,0.00047144,120]
[23909,1774508163657,-161.28719181,0.00047144,120]
[23911,1774508163709,-1086.25548326,0.00047144,120]
[23913,1774508163764,-232.26,0.00047144,120]
[23915,1774508163821,-4019.00388059,0.00047144,30]
[23917,1774508163884,-325.83748162,0.00047144,120]
[23919,1774508163942,-2996.65242382,0.00047144,30]
[23921,1774508163995,-8757.04043872,0.00047144,60]
[23923,1774508164048,-2088.1302706,0.00047144,30]
[23925,1774508164102,-1283.31561947,0.00047144,60]
[23981,1774508166551,-500.0,0.00047144,120]
[24003,1774508167801,-574.75,0.00047144,120]
[24005,1774508167913,-574.75,0.00047144,120]
[24173,1774508176495,-500.0,0.00047144,120]
[24175,1774508176593,-500.0,0.00047144,120]
[24177,1774508176692,-500.0,0.00047144,120]
[24179,1774508176790,-216.99900126,0.00047144,120]
[24183,1774508176980,-500.0,0.00047144,120]
[24192,1774508177608,-500.0,0.00047144,120]
[24194,1774508177709,-500.0,0.00047144,120]
[24196,1774508177808,-211.62520868,0.00047144,120]
[24198,1774508177905,-500.0,0.00047144,60]
[24200,1774508178000,-500.0,0.00047144,60]
[24202,1774508178097,-500.0,0.00047144,60]
[24204,1774508178199,-500.0,0.00047144,60]
[24206,1774508178295,-500.0,0.00047144,60]
[24208,1774508178394,-500.0,0.00047144,60]
[24210,1774508178497,-376.31840546,0.00047144,60]
[24212,1774508178593,-500.0,0.00047144,120]
[24213,1774508178640,-500.0,0.00047144,120]
[24214,1774508178688,-500.0,0.00047144,120]
[24215,1774508178735,-500.0,0.00047144,120]
[24216,1774508178788,-500.0,0.00047144,120]
[24217,1774508178839,-525.88365214,0.00047144,120]
[24219,1774508178936,-500.0,0.00047144,120]
[24220,1774508178984,-500.0,0.00047144,120]
[24221,1774508179031,-500.0,0.00047144,120]
[24222,1774508179078,-500.0,0.00047144,120]
[24223,1774508179125,-500.0,0.00047144,120]
[24225,1774508179224,-500.0,0.00047144,120]
[24227,1774508179323,-500.0,0.00047144,120]
[24229,1774508179427,-500.0,0.00047144,120]
[24231,1774508179530,-500.0,0.00047144,120]
[24233,1774508179632,-500.0,0.00047144,120]
[24234,1774508179685,-500.0,0.00047144,120]
[24235,1774508179737,-500.0,0.00047144,120]
[24237,1774508179843,-500.0,0.00047144,120]
[24238,1774508179895,-466.80148133,0.00047144,120]
[24239,1774508179947,-500.0,0.00047144,120]
[24241,1774508180050,-500.0,0.00047144,120]
[24242,1774508180102,-500.0,0.00047144,120]
[24244,1774508180206,-500.0,0.00047144,120]
[24245,1774508180258,-500.0,0.00047144,120]
[24247,1774508180364,-2799.25,0.00047144,120]
[24248,1774508180412,-2799.25,0.00047144,120]
[24249,1774508180459,-2799.25,0.00047144,120]
[24251,1774508180573,-2799.25,0.00047144,120]
[24252,1774508180624,-2799.25,0.00047144,120]
[24253,1774508180674,-2799.25,0.00047144,120]
[24257,1774508180825,-2799.25,0.00047144,120]
[24260,1774508180977,-2799.25,0.00047144,120]
[24261,1774508181027,-2799.25,0.00047144,120]
[24263,1774508181127,-2799.25,0.00047144,120]
[24264,1774508181175,-2799.25,0.00047144,120]
[24265,1774508181223,-2799.25,0.00047144,120]
[24266,1774508181270,-2799.25,0.00047144,120]
[24269,1774508181611,-2799.25,0.00047144,120]
[24273,1774508181814,-2799.42107307,0.00047144,120]
[24280,1774508182165,-500.0,0.00047144,120]
[24286,1774508182475,-500.0,0.00047144,120]
[24288,1774508182573,-300.59770446,0.00047144,120]
[24290,1774508182671,-500.0,0.00047144,120]
[24292,1774508182770,-600.74127182,0.00047144,120]
[24294,1774508182869,-500.0,0.00047144,120]
[24296,1774508182965,-500.0,0.00047144,120]
[24298,1774508183062,-500.0,0.00047144,120]
[24302,1774508183258,-500.0,0.00047144,120]
[24305,1774508183426,-500.0,0.00047144,120]
[24341,1774508185249,-414.74146306,0.00047144,30]
[24343,1774508185345,-500.0,0.00047144,120]
[24347,1774508185541,-500.0,0.00047144,120]
[24349,1774508185817,-345.21544994,0.00047144,120]
[24351,1774508185920,-500.0,0.00047144,120]
[24555,1774508196145,-500.0,0.00047144,120]
[24570,1774508196974,-500.0,0.00047144,120]
[24572,1774508197063,-500.0,0.00047144,120]
[31533,1774516114414,-1302.31,0.00047068,120]
[31535,1774516114468,-1302.31,0.00047068,120]
[31537,1774516114527,-636.06,0.00047068,30]
[31539,1774516114583,-151.0,0.00047068,30]
[31541,1774516114637,-500.0,0.00047068,120]
[31599,1774516116241,-969.41,0.00047068,120]
[31601,1774516116296,-500.0,0.00047068,120]
[31615,1774516116700,-500.0,0.00047068,120]
[31617,1774516116757,-500.0,0.00047068,120]
[31619,1774516116814,-500.0,0.00047068,120]
[31621,1774516116869,-500.0,0.00047068,120]
[31623,1774516117091,-500.0,0.00047068,120]
[31625,1774516117147,-500.0,0.00047068,120]
[31627,1774516117203,-366.39147659,0.00047068,120]
[31629,1774516117263,-500.0,0.00047068,120]
[31631,1774516117322,-500.0,0.00047068,120]
[31633,1774516117381,-500.0,0.00047068,120]
[31635,1774516117438,-500.0,0.00047068,120]
[31667,1774516118331,-500.0,0.00047068,120]
[31669,1774516118389,-778.46,0.00047068,120]
[32144,1774516133064,-636.06,0.00047068,30]
[32226,1774516135721,-500.0,0.00047068,120]
[32228,1774516135780,-500.0,0.00047068,120]
[32230,1774516135840,-500.0,0.00047068,120]
[32231,1774516135870,-500.0,0.00047068,120]
[32233,1774516135929,-500.0,0.00047068,120]
[32236,1774516136017,-227.55649066,0.00047068,120]
[32238,1774516136078,-537.55527429,0.00047068,120]
[32240,1774516136140,-500.0,0.00047068,120]
[32266,1774516136934,-1039.9,0.00047068,120]
[32649,1774516149786,-614.36,0.00047068,120]
[32651,1774516149850,-500.0,0.00047068,120]
[32653,1774516149918,-605.11187805,0.00047068,120]
[32655,1774516149987,-500.0,0.00047068,120]
[32657,1774516150054,-3249.95,0.00047068,120]
[32659,1774516150118,-500.0,0.00047068,120]
[32661,1774516150181,-3249.95,0.00047068,120]
[32663,1774516150243,-500.0,0.00047068,120]
[32665,1774516150306,-500.0,0.00047068,120]
[32667,1774516150370,-3249.95,0.00047068,120]
[32669,1774516150434,-614.36,0.00047068,120]
[32671,1774516150496,-500.0,0.00047068,120]
[32673,1774516150560,-3249.95,0.00047068,120]
[32675,1774516150625,-3249.95,0.00047068,120]
[32677,1774516150688,-500.0,0.00047068,120]
[32679,1774516150750,-614.36,0.00047068,120]
[32681,1774516150815,-329.67048219,0.00047068,120]
[32683,1774516150881,-614.36,0.00047068,120]
[32685,1774516151141,-3249.95,0.00047068,120]
[32687,1774516151208,-514.47,0.00047068,120]
[32983,1774516160577,-500.0,0.00047068,120]
[32987,1774516160696,-500.0,0.00047068,120]
[418904693,1774520533319,2500.0,8.567e-05,2]
[418904694,1774520539984,-400.0,8.657e-05,2]
[418904696,1774520593494,2718.87,8.477e-05,2]
[418904698,1774520649504,177.0,0.00017,60]
[418904701,1774520670917,2500.0,8.567e-05,2]
[418904702,1774520679454,-100.0,8.657e-05,2]
[418904703,1774520679478,-150.0,8.659e-05,2]
[418904704,1774520706852,155.0,0.00017,60]
[418904705,1774520732611,76.78,8.567e-05,2]
[418904706,1774520732634,10000.01,8.567e-05,2]
[418904707,1774520732658,10000.01,8.567e-05,2]
[418904708,1774520732682,10000.01,8.567e-05,2]
[418904709,1774520732706,10000.01,8.567e-05,2]
[418904710,1774520732729,10000.01,8.567e-05,2]
[418904711,1774520732753,10000.01,8.567e-05,2]
[418904712,1774520732776,10000.01,8.567e-05,2]
[418904713,1774520732800,10000.01,8.567e-05,2]
[418904714,1774520732823,10000.01,8.567e-05,2]
[418904716,1774520744397,-10000.01,8.567e-05,2]
[418904717,1774520744671,-10000.01,8.567e-05,2]
[418904718,1774520744929,-10000.01,8.567e-05,2]
[418904719,1774520745165,-10000.01,8.567e-05,2]
[418904720,1774520745396,-10000.01,8.567e-05,2]
[418904721,1774520745609,-10000.01,8.567e-05,2]
[418904722,1774520746842,-10000.01,8.567e-05,2]
[418904723,1774520747140,-10000.01,8.567e-05,2]
[418904724,1774520747196,-10000.01,8.567e-05,2]
[418904725,1774520747213,-10000.01,8.567e-05,2]
[418904726,1774520752644,155.0,0.00017,60]
[418904727,1774520752938,-10000.01,8.567e-05,2]
[418904728,1774520755866,-10000.01,8.567e-05,2]
[418904729,1774520756191,-10000.01,8.567e-05,2]
[418904730,1774520756450,-10000.01,8.567e-05,2]
[418904731,1774520756650,-10000.01,8.567e-05,2]
[418904732,1774520758864,-10000.01,8.567e-05,2]
[418904733,1774520762047,-300.0,8.566e-05,2]
[418904734,1774520762091,-9400.01,8.567e-05,2]
[418904735,1774520762215,-10000.01,8.567e-05,2]
[418904736,1774520762321,-10000.01,8.567e-05,2]
[418904737,1774520762413,-10000.01,8.567e-05,2]
[418904738,1774520762519,-10000.01,8.567e-05,2]
[418904739,1774520762624,-10000.01,8.567e-05,2]
[418904740,1774520762755,-10000.01,8.567e-05,2]
[418904741,1774520764978,-10000.01,8.567e-05,2]
[418904742,1774520768044,-10000.01,8.567e-05,2]
[418904743,1774520768162,-10000.01,8.567e-05,2]
[418904744,1774520768344,-10000.01,8.567e-05,2]
[418904745,1774520768391,-10000.01,8.567e-05,2]
[418904746,1774520768546,-10000.01,8.567e-05,2]
[418904747,1774520768649,-10000.01,8.567e-05,2]
[418904748,1774520768782,-10000.01,8.567e-05,2]
[418904749,1774520780436,-150.0,8.31e-05,2]
[418904750,1774520830814,-3050.66008016,7.945e-05,2]
[418904751,1774520831800,-3050.66008016,7.945e-05,2]
[418904752,1774520831825,-3898.68983968,7.945e-05,2]
[418904753,1774520833847,300.0,7.944e-05,2]
[418904754,1774520843529,1300.0,8.8e-05,3]
[418904755,1774520845609,2600.0,8.9e-05,3]
[418904756,1774520847693,3900.0,9e-05,3]
[418904761,1774520932485,1757.11,7.729e-05,2]
[418904762,1774520956168,-374.79559344,8.003e-05,2]
[418904763,1774520965109,-834.01440656,8.003e-05,2]
[418904764,1774520965133,-690.81,8.07e-05,2]
[418904765,1774520965153,-2000.0,8.219e-05,2]
[418904766,1774520965174,-710.0,8.341e-05,2]
[418904767,1774520965195,-128.92940671,8.483e-05,2]
[418904774,1774521032301,-200.0,8.3e-05,2]
[418904775,1774521032311,-236.0,8.3e-05,2]
[418904776,1774521032320,-250.0,8.392e-05,2]
[418904777,1774521032330,-671.07059329,8.483e-05,2]
[418904778,1774521032339,-632.55815179,8.494e-05,2]
[418904779,1774521032348,-176.69833795,8.542e-05,2]
[418904780,1774521032358,-500.0,8.543e-05,2]
[418904781,1774521032368,-176.69833794,8.555e-05,2]
[418904782,1774521032378,-500.0,8.557e-05,2]
[418904783,1774521032387,-1200.0,8.564e-05,2]
[418904784,1774521032396,-1167.0,8.565e-05,2]
[418904785,1774521032406,-150.0,8.565e-05,2]
[418904786,1774521032415,-300.0,8.565e-05,2]
[418904787,1774521032424,-195.40109661,8.566e-05,2]
[418904788,1774521032434,-500.0,8.566e-05,2]
[418904789,1774521032443,-500.0,8.566e-05,2]
[418904790,1774521032452,-322.93303543,8.566e-05,2]
[418904791,1774521032462,-500.0,8.566e-05,2]
[418904792,1774521032471,-101.02292929,8.566e-05,2]
[418904793,1774521032491,-123.76928517,8.566e-05,2]
[418904794,1774521032500,-323.36468344,8.566e-05,2]
[418904795,1774521032509,-62.86603139,8.566e-05,2]
[418904796,1774521032521,-437.13396861,8.566e-05,2]
[418904797,1774521032530,-62.36897771,8.566e-05,2]
[418904798,1774521032542,-437.63102229,8.566e-05,2]
[418904799,1774521032551,-150.56696842,8.566e-05,2]
[418904801,1774521032560,-500.0,8.566e-05,2]
[418904803,1774521032570,-500.0,8.566e-05,2]
[418904805,1774521032579,-500.0,8.566e-05,2]
[418904807,1774521032588,-500.0,8.566e-05,2]
[418904808,1774521032598,-500.0,8.566e-05,2]
[418904809,1774521032607,-307.80200929,8.566e-05,2]
[418904810,1774521032627,-192.19799071,8.566e-05,2]
[418904811,1774521032635,-500.0,8.566e-05,2]
[418904812,1774521032645,-500.0,8.566e-05,2]
[418904813,1774521032655,-418.69310668,8.566e-05,2]
[418904814,1774521032666,-81.30689332,8.566e-05,2]
[418904815,1774521032675,-500.0,8.566e-05,2]
[418904816,1774521032685,-500.0,8.566e-05,2]
[418904817,1774521032694,-338.34746497,8.566e-05,2]
[418904818,1774521032706,-161.65253503,8.566e-05,2]
[418904819,1774521032715,-500.0,8.566e-05,2]
[418904820,1774521032725,-94.53363783,8.566e-05,2]
[418904821,1774521032737,-71.84028979,8.566e-05,2]
[418904822,1774521032747,-500.0,8.566e-05,2]
[418904823,1774521032756,-500.0,8.566e-05,2]
[418904824,1774521032765,-500.0,8.566e-05,2]
[418904825,1774521032775,-500.0,8.566e-05,2]
[418904826,1774521032785,-500.0,8.566e-05,2]
[418904827,1774521032794,-500.0,8.566e-05,2]
[418904828,1774521032803,-500.0,8.566e-05,2]
[418904829,1774521032813,-46.27943144,8.566e-05,2]
[418904830,1774521032825,-453.72056856,8.566e-05,2]
[418904831,1774521032835,-500.0,8.566e-05,2]
[418904832,1774521032844,-500.0,8.566e-05,2]
[418904833,1774521032853,-500.0,8.566e-05,2]
[418904834,1774521032862,-252.06737908,8.566e-05,2]
[418904835,1774521032872,-500.0,8.566e-05,2]
[418904836,1774521032881,-500.0,8.566e-05,2]
[418904837,1774521032891,-500.0,8.566e-05,2]
[418904838,1774521032900,-500.0,8.566e-05,2]
[418904839,1774521032910,-250.0,8.566e-05,2]
[418904840,1774521032919,-500.0,8.566e-05,2]
[418904841,1774521032929,-500.0,8.566e-05,2]
[418904842,1774521032938,-500.0,8.566e-05,2]
[418904843,1774521032948,-500.0,8.566e-05,2]
[418904844,1774521032957,-500.0,8.566e-05,2]
[418904845,1774521032967,-500.0,8.566e-05,2]
[418904846,1774521032976,-500.0,8.566e-05,2]
[418904847,1774521032986,-500.0,8.566e-05,2]
[418904848,1774521032997,-500.0,8.566e-05,2]
[418904849,1774521033007,-500.0,8.566e-05,2]
[418904850,1774521033017,-500.0,8.566e-05,2]
[418904851,1774521033027,-500.0,8.566e-05,2]
[418904852,1774521033038,-500.0,8.566e-05,2]
[418904853,1774521033048,-500.0,8.566e-05,2]
[418904854,1774521033060,-500.0,8.566e-05,2]
[418904855,1774521033070,-500.0,8.566e-05,2]
[418904856,1774521033081,-500.0,8.566e-05,2]
[418904857,1774521033090,-500.0,8.566e-05,2]
[418904858,1774521033101,-500.0,8.566e-05,2]
[418904859,1774521033112,-993997.80332071,8.567e-05,2]
[418904860,1774521033125,-106525.01667929,8.567e-05,2]
[418904861,1774521033134,-11661.51791516,8.567e-05,2]
[418904862,1774521033146,-163657.81398627,8.567e-05,2]
[418904863,1774521033158,-24205.26809857,8.567e-05,2]
[418904864,1774521033168,-1021.9228,8.567e-05,2]
[418904865,1774521033177,-176.69833794,8.567e-05,2]
[418904866,1774521033187,-3878.32470845,8.658e-05,2]
[418904867,1774521033196,-300.062,8.659e-05,2]
[418904868,1774521033206,-151.0,8.659e-05,2]
[418904869,1774521033215,-151.0,8.659e-05,2]
[418904870,1774521033225,-151.0,8.659e-05,2]
[418904871,1774521033234,-151.0,8.659e-05,2]
[418904872,1774521033244,-1523.0,8.659e-05,2]
[418904873,1774521033253,-1297.07831781,8.659e-05,2]
[418904874,1774521033262,-151.0,8.659e-05,2]
[418904875,1774521033272,-151.0,8.659e-05,2]
[418904876,1774521033281,-1523.0,8.659e-05,2]
[418904877,1774521033290,-151.0,8.659e-05,2]
[418904878,1774521033300,-151.0,8.659e-05,2]
[418904879,1774521033309,-151.0,8.659e-05,2]
[418904880,1774521033318,-225.8088978,8.659e-05,2]
[418904881,1774521033327,-300.0,8.659e-05,2]
[418904882,1774521033336,-151.0,8.659e-05,2]
[418904883,1774521033346,-300.0,8.659e-05,2]
[418904884,1774521033355,-500.0,8.666e-05,2]
[418904885,1774521033364,-500.0,8.666e-05,2]
[418904886,1774521033374,-500.0,8.666e-05,2]
[418904887,1774521033382,-500.0,8.666e-05,2]
[418904888,1774521033392,-500.0,8.666e-05,2]
[418904889,1774521033402,-500.0,8.666e-05,2]
[418904890,1774521033411,-500.0,8.666e-05,2]
[418904891,1774521033420,-500.0,8.666e-05,2]
[418904892,1774521033429,-500.0,8.666e-05,2]
[418904893,1774521033438,-500.0,8.666e-05,2]
[418904894,1774521033448,-500.0,8.666e-05,2]
[418904895,1774521033458,-500.0,8.666e-05,2]
[418904896,1774521033467,-500.0,8.666e-05,2]
[418904897,1774521033477,-500.0,8.666e-05,2]
[418904898,1774521033486,-500.0,8.666e-05,2]
[418904899,1774521033495,-500.0,8.666e-05,2]
[418904900,1774521033504,-500.0,8.667e-05,2]
[418904901,1774521033514,-500.0,8.667e-05,2]
[418904902,1774521033523,-500.0,8.667e-05,2]
[418904903,1774521033532,-500.0,8.667e-05,2]
[418904904,1774521033542,-333.0,8.681e-05,2]
[418904905,1774521033551,-444.0,8.681e-05,2]
[418904906,1774521033561,-333.0,8.681e-05,2]
[418904907,1774521033570,-222.0,8.681e-05,2]
[418904908,1774521033579,-155.0,8.681e-05,2]
[418904909,1774521033588,-444.0,8.681e-05,2]
[418904910,1774521033597,-555.0,8.681e-05,2]
[418904911,1774521033607,-3306.19,8.681e-05,2]
[418904912,1774521033616,-555.0,8.704e-05,2]
[418904913,1774521033626,-156.79,8.704e-05,2]
[418904914,1774521033635,-1200.0,8.769e-05,2]
[418904915,1774521033645,-150.0,8.8e-05,2]
[418904916,1774521033655,-250.0,8.803e-05,2]
[418904917,1774521033665,-1852.42,8.831e-05,2]
[418904918,1774521033674,-1600.0,8.929e-05,2]
[418904919,1774521033684,-610.0,8.951e-05,2]
[418904920,1774521033693,-200.0,9e-05,2]
[418904921,1774521033702,-1523.0,9e-05,2]
[418904922,1774521033712,-1523.0,9e-05,2]
[418904923,1774521033721,-160.0,9e-05,2]
[418904924,1774521033731,-1523.0,9e-05,2]
[418904925,1774521033741,-160.0,9e-05,2]
[418904926,1774521033751,-162.42548023,9e-05,2]
[418904927,1774521033760,-1523.0,9e-05,2]
[418904928,1774521033770,-151.0,9e-05,2]
[418904929,1774521033780,-151.0,9e-05,2]
[418904930,1774521033789,-151.0,9e-05,2]
[418904931,1774521033800,-151.0,9e-05,2]
[418904932,1774521033809,-151.0,9e-05,2]
[418904933,1774521033818,-1523.0,9e-05,2]
[418904934,1774521033828,-151.0,9e-05,2]
[418904935,1774521033837,-1523.0,9e-05,2]
[418904936,1774521033847,-151.0,9e-05,2]
[418904937,1774521033856,-1523.0,9e-05,2]
[418904938,1774521033865,-151.0,9e-05,2]
[418904939,1774521033875,-1523.0,9e-05,2]
[418904940,1774521033884,-1523.0,9e-05,2]
[418904941,1774521033894,-1523.0,9e-05,2]
[418904942,1774521033903,-1523.0,9e-05,2]
[418904943,1774521033914,-1523.0,9e-05,2]
[418904944,1774521033923,-1523.0,9e-05,2]
[418904945,1774521033932,-1523.0,9e-05,2]
[418904946,1774521033942,-1523.0,9e-05,2]
[418904947,1774521033951,-1523.0,9e-05,2]
[418904948,1774521033961,-156.79,9.082e-05,2]
[418904949,1774521033970,-500.0,9.091e-05,2]
[418904950,1774521033979,-166.66,9.096e-05,2]
[418904951,1774521033989,-250.0,9.13e-05,2]
[418904952,1774521033999,-910.0,9.136e-05,2]
[418904953,1774521034008,-1122.1424,9.175e-05,2]
[418904954,1774521034018,-2000.0,9.247e-05,2]
[418904955,1774521034027,-305.09,9.359e-05,2]
[418904956,1774521034036,-166.66,9.396e-05,2]
[418904957,1774521034046,-1680.0,9.42e-05,2]
[418904958,1774521034055,-255.0,9.421e-05,2]
[418904959,1774521034064,-500.0,9.452e-05,2]
[418904960,1774521034073,-500.0,9.452e-05,2]
[418904961,1774521034082,-500.0,9.452e-05,2]